bitfinex-derivatives/quotes_SOLF0:USTF0_20240923
["timestamp","ask_amount","ask_price","bid_price","bid_amount"]
[1727092713359,3.4846,143.5,143.45,7.5]
[1727092713555,10.9846,143.5,143.45,7.5]
[1727092713959,14.56464721,143.54,143.49,7.5]
[1727092714166,7.5,143.53,143.49,7.5]
[1727092714460,3.484,143.52,143.49,7.5]
[1727092715069,10.9838,143.53,143.5,3.4844]
[1727092717967,7.5,143.53,143.5,3.4844]
[1727092718668,10.9838,143.53,143.5,3.4844]
[1727092719272,3.484,143.52,143.49,10.9846]
[1727092719470,3.484,143.52,143.49,3.4846]
[1727092720575,10.984,143.52,143.49,3.4846]
[1727092720775,10.984,143.52,143.48,7.5]
[1727092721576,7.5,143.52,143.49,3.4846]
[1727092721874,3.4838,143.53,143.49,10.9846]
[1727092722875,3.484,143.52,143.49,10.9846]
[1727092723876,98.95581492,143.6,143.49,7.5]
[1727092724076,7.5,143.55,143.51,7.5]
[1727092724873,3.4836,143.54,143.51,10.9841]
[1727092726081,3.4838,143.53,143.5,3.4844]
[1727092731596,3.484,143.52,143.5,3.4844]
[1727092733300,3.4838,143.53,143.5,3.4844]
[1727092734200,3.4838,143.53,143.51,7.5]
[1727092734401,3.4838,143.53,143.51,10.9842]
[1727092737601,3.4838,143.53,143.51,7.5]
[1727092741205,3.484,143.52,143.49,3.4845]
[1727092741400,3.484,143.52,143.49,10.9845]
[1727092742507,3.4843,143.51,143.48,3.4848]
[1727092742695,7.5,143.52,143.48,3.4848]
[1727092743096,7.5,143.54,143.49,7.5]
[1727092743401,7.5,143.54,143.42,6.9727]
[1727092743601,3.523773,143.56,143.5,7.5]
[1727092743902,3.4839,143.53,143.5,10.9844]
[1727092745904,3.484,143.52,143.5,10.9844]
[1727092746101,7.5,143.53,143.49,7.5]
[1727092746302,7.5,143.52,143.47,7.5]
[1727092746502,3.4846,143.5,143.47,10.985]
[1727092747903,3.4846,143.5,143.41,7.57493731]
[1727092747904,7.5,143.5,143.41,7.57493731]
[1727092748095,7.5,143.5,143.45,7.5]
[1727092748907,3.41943136,143.51,143.46,7.5]
[1727092748908,7.5,143.51,143.46,7.5]
[1727092749401,7.5,143.52,143.48,7.5]
[1727092750000,3.4846,143.5,143.48,7.5]
[1727092750504,6.9654,143.58,143.49,7.5]
[1727092750700,3.4843,143.51,143.49,7.5]
[1727092754511,3.484,143.52,143.49,10.9847]
[1727092757411,3.4842,143.51,143.49,10.9847]
[1727092767213,3.4842,143.51,143.49,7.5]
[1727092767413,3.484,143.52,143.49,7.5]
[1727092767815,3.484,143.52,143.49,10.9846]
[1727092768320,7.5,143.54,143.49,10.9846]
[1727092768321,3.4842,143.51,143.49,10.9846]
[1727092774021,3.4841,143.52,143.5,10.9844]
[1727092774224,10.90258537,143.56,143.51,7.5]
[1727092774429,7.5,143.56,143.51,7.5]
[1727092774623,3.4838,143.53,143.51,7.5]
[1727092775323,3.4838,143.53,143.42,6.9727]
[1727092775324,7.5,143.59,143.52,7.5]
[1727092775513,22.06996044,143.59,143.54,7.5]
[1727092775720,3.4834,143.55,143.53,7.5]
[1727092787130,3.4831,143.56,143.53,10.9837]
[1727092788437,7.5,143.58,143.51,1.4551]
[1727092788438,3.4826,143.58,143.55,10.9831]
[1727092788631,2.5286,143.63,143.56,7.5]
[1727092788940,7.5,143.65,143.59,7.5]
[1727092789135,14.55496223,143.66,143.59,7.5]
[1727092789337,14.55496223,143.65,143.62,7.5]
[1727092789538,7.5,143.67,143.62,7.5]
[1727092793444,3.41965841,143.69,143.64,7.5]
[1727092793653,7.5,143.69,143.64,7.5]
[1727092793839,10.92876499,143.69,143.64,7.5]
[1727092794146,7.5,143.69,143.64,7.5]
[1727092796446,3.3967172,143.7,143.63,7.5]
[1727092796646,7.5,143.67,143.63,7.5]
[1727092797637,3.49226894,143.7,143.63,7.5]
[1727092797849,7.5,143.68,143.63,7.5]
[1727092798044,10.94803214,143.68,143.64,7.5]
[1727092798650,7.5,143.68,143.64,7.5]
[1727092798852,7.5,143.69,143.64,7.5]
[1727092799043,7.5,143.69,143.65,7.5]
[1727092800248,7.5,143.69,143.63,3.4812]
[1727092800453,7.5,143.68,143.63,3.4812]
[1727092800647,7.5,143.68,143.63,10.9812]
[1727092800949,7.5,143.69,143.64,7.5]
[1727092801347,4.75256057,143.71,143.58,2.8056]
[1727092801546,7.5,143.67,143.62,7.5]
[1727092801845,4.75256057,143.71,143.64,7.5]
[1727092801846,7.5,143.69,143.64,7.5]
[1727092802349,7.5,143.68,143.63,7.5]
[1727092802545,4.75256057,143.71,143.58,2.8056]
[1727092802546,7.5,143.67,143.62,7.5]
[1727092803247,1.2429,143.7,143.59,3.4823]
[1727092803442,7.5,143.64,143.59,10.9823]
[1727092803852,7.5,143.64,143.59,7.5]
[1727092804048,7.5,143.62,143.58,1.4076]
[1727092804456,7.5,143.63,143.58,8.9076]
[1727092804648,8.2387,143.69,143.58,8.9076]
[1727092804853,7.5,143.64,143.58,8.9076]
[1727092805152,7.5,143.64,143.58,12.3899]
[1727092805348,7.5,143.64,143.58,8.9076]
[1727092805553,11.00578316,143.63,143.58,8.9076]
[1727092805752,7.5,143.61,143.57,7.5]
[1727092805952,7.5,143.6,143.56,7.5]
[1727092809458,3.54584726,143.62,143.56,7.5]
[1727092809762,7.5,143.66,143.6,7.5]
[1727092809961,7.5,143.66,143.62,7.5]
[1727092810163,7.5,143.67,143.62,7.5]
[1727092810364,7.5,143.67,143.63,7.5]
[1727092810662,7.5,143.67,143.62,7.5]
[1727092810864,7.5,143.66,143.61,7.5]
[1727092812659,7.5,143.63,143.58,7.5]
[1727092812859,7.5,143.62,143.57,7.5]
[1727092813959,3.48310693,143.63,143.54,1.3727]
[1727092814272,8.2386,143.69,143.55,7.5]
[1727092814273,7.5,143.6,143.55,7.5]
[1727092814764,7.5,143.6,143.56,7.5]
[1727092815261,7.5,143.6,143.55,7.5]
[1727092815561,7.5,143.59,143.54,1.3727]
[1727092815767,7.5,143.56,143.51,7.5]
[1727092816067,7.5,143.55,143.5,7.5]
[1727092816272,6.9623,143.64,143.51,7.5]
[1727092816273,7.5,143.56,143.51,7.5]
[1727092816659,7.5,143.56,143.53,7.5]
[1727092816862,7.5,143.57,143.53,7.5]
[1727092817268,3.43054721,143.62,143.56,7.5]
[1727092817569,6.9598,143.69,143.58,7.5]
[1727092817770,7.5,143.64,143.59,7.5]
[1727092818473,11.7,143.65,143.57,2.7433]
[1727092820060,11.7,143.67,143.58,11.7]
[1727092822070,11.7,143.67,143.59,3.4822]
[1727092822270,11.7,143.67,143.58,11.7]
[1727092822466,2.5243,143.7,143.6,11.7]
[1727092822670,2.5243,143.7,143.62,3.4815]
[1727092824174,11.7,143.69,143.6,11.7]
[1727092824571,11.7,143.69,143.6,15.182]
[1727092825065,11.7,143.69,143.6,11.7]
[1727092825271,11.7,143.67,143.59,3.4822]
[1727092825471,11.7,143.67,143.58,11.7]
[1727092826671,11.7,143.67,143.6,3.482]
[1727092827172,11.7,143.69,143.61,3.4817]
[1727092827872,11.7,143.69,143.62,3.4815]
[1727092829072,11.7,143.69,143.61,3.4817]
[1727092829769,11.7,143.69,143.6,11.7]
[1727092830674,11.7,143.67,143.58,11.7]
[1727092831676,11.7,143.67,143.59,3.4822]
[1727092832570,11.7,143.67,143.58,11.7]
[1727092832766,9.4837,143.7,143.58,11.7]
[1727092832970,11.7,143.65,143.58,11.7]
[1727092833172,11.7,143.65,143.57,6.2259]
[1727092833376,11.7,143.65,143.57,2.7433]
[1727092833576,11.7,143.65,143.56,13.149]
[1727092833577,11.7,143.64,143.56,1.449]
[1727092833781,11.7,143.68,143.56,1.449]
[1727092833782,11.7,143.62,143.56,1.449]
[1727092833974,15.09811912,143.62,143.56,1.449]
[1727092834174,11.7,143.62,143.56,1.449]
[1727092834976,15.19452999,143.62,143.56,1.449]
[1727092836871,11.7,143.64,143.56,1.449]
[1727092837173,11.7,143.66,143.58,11.7]
[1727092837373,11.7,143.68,143.6,3.482]
[1727092837579,11.7,143.68,143.6,15.182]
[1727092837774,11.7,143.68,143.6,11.7]
[1727092838074,11.7,143.68,143.6,15.1819]
[1727092838868,11.7,143.68,143.59,4.8281]
[1727092839074,11.7,143.66,143.59,4.8281]
[1727092840977,11.7,143.66,143.59,1.346]
[1727092841178,11.7,143.64,143.59,1.346]
[1727092841379,11.7,143.64,143.56,13.149]
[1727092841679,11.7,143.64,143.56,16.6318]
[1727092843675,11.7,143.64,143.57,3.4827]
[1727092845578,11.7,143.64,143.58,3.4825]
[1727092845878,14.49479352,143.69,143.58,3.4825]
[1727092845879,11.7,143.66,143.58,3.4825]
[1727092846272,11.7,143.68,143.59,11.7]
[1727092846682,26.20704613,143.68,143.6,1.4041]
[1727092846875,11.7,143.68,143.61,3.4818]
[1727092847378,26.20704615,143.68,143.61,3.4818]
[1727092847582,11.7,143.68,143.61,3.4818]
[1727092848083,26.20859899,143.68,143.61,3.4818]
[1727092848280,11.7,143.68,143.6,1.4041]
[1727092848676,26.21038332,143.68,143.6,1.4041]
[1727092848880,11.7,143.68,143.6,1.4041]
[1727092850083,11.7,143.68,143.6,4.886]
[1727092850680,11.7,143.68,143.6,1.4041]
[1727092850885,14.2243,143.7,143.61,11.7]
[1727092851077,27.45715267,143.7,143.61,11.7]
[1727092851281,12.9449,143.7,143.62,4.932]
[1727092851584,27.45806712,143.7,143.62,4.932]
[1727092851784,12.9449,143.7,143.62,4.932]
[1727092852582,12.9449,143.7,143.63,3.4812]
[1727092852784,3.47346057,143.71,143.63,11.7]
[1727092853285,3.47346057,143.71,143.64,3.4809]
[1727092853483,17.98726105,143.71,143.64,3.4809]
[1727092853684,3.47346057,143.71,143.64,3.4809]
[1727092854079,3.47346057,143.71,143.63,15.1812]
[1727092854883,3.47346057,143.71,143.63,11.7]
[1727092855087,11.7,143.7,143.62,4.932]
[1727092855481,11.7,143.68,143.62,1.4506]
[1727092861893,11.7,143.66,143.6,1.4041]
[1727092862688,11.7,143.66,143.58,1.4671]
[1727092862894,11.7,143.63,143.58,1.4671]
[1727092863190,11.7,143.63,143.54,1.4496]
[1727092863191,15.10182489,143.63,143.54,2.9009]
[1727092863395,15.10182489,143.63,143.54,6.3842]
[1727092863699,11.7,143.61,143.54,2.9009]
[1727092864198,3.53439264,143.6,143.54,2.9009]
[1727092865496,11.7,143.57,143.49,3.4845]
[1727092867897,11.7,143.57,143.48,15.1848]
[1727092868101,11.7,143.54,143.48,3.4848]
[1727092868700,11.7,143.56,143.47,13.1326]
[1727092869901,11.7,143.56,143.5,3.4844]
[1727092872107,11.7,143.56,143.47,13.1326]
[1727092872502,11.7,143.54,143.47,1.4326]
[1727092872805,11.7,143.54,143.48,3.4847]
[1727092873395,11.7,143.54,143.49,3.4846]
[1727092873799,11.7,143.56,143.47,13.1326]
[1727092874203,11.7,143.56,143.5,3.4843]
[1727092874902,11.7,143.56,143.49,3.4846]
[1727092876903,11.7,143.56,143.5,3.4844]
[1727092877308,11.7,143.56,143.51,3.4842]
[1727092877508,14.2266,143.58,143.51,3.4842]
[1727092878012,14.2266,143.58,143.52,3.4839]
[1727092878213,14.2266,143.58,143.49,11.7]
[1727092878214,11.7,143.58,143.49,11.7]
[1727092878607,11.7,143.58,143.53,3.4835]
[1727092879406,11.7,143.58,143.54,3.4834]
[1727092879710,11.7,143.6,143.54,3.4834]
[1727092880405,15.20515823,143.6,143.54,3.4834]
[1727092880606,15.20515823,143.6,143.52,2.8777]
[1727092880607,11.7,143.6,143.52,2.8777]
[1727092880801,17.68894061,143.62,143.53,11.7]
[1727092881002,17.68894061,143.62,143.53,13.1596]
[1727092881404,16.44324061,143.62,143.56,3.4828]
[1727092881609,11.7,143.64,143.55,11.7]
[1727092881809,11.7,143.66,143.57,11.7]
[1727092882110,11.7,143.66,143.59,3.4822]
[1727092882811,11.7,143.66,143.6,3.482]
[1727092884408,11.7,143.68,143.58,11.7]
[1727092884614,12.9813,143.69,143.6,11.7]
[1727092885016,12.9813,143.69,143.63,3.4811]
[1727092885217,12.9813,143.69,143.6,11.7]
[1727092885711,12.9813,143.69,143.59,4.2877]
[1727092885712,11.7,143.67,143.59,4.2877]
[1727092886213,11.7,143.67,143.61,3.4816]
[1727092886714,11.7,143.71,143.62,11.7]
[1727092887413,3.4802,143.68,143.64,3.481]
[1727092887808,3.4802,143.68,143.62,11.7]
[1727092889509,3.4802,143.68,143.64,3.4808]
[1727092889712,15.24645493,143.73,143.64,11.7]
[1727092889911,11.7,143.73,143.64,11.7]
[1727092890113,11.7,143.73,143.67,3.4802]
[1727092890317,3.4795,143.71,143.67,3.4802]
[1727092890710,11.7,143.73,143.68,3.4801]
[1727092891014,3.4794,143.71,143.65,2.7906]
[1727092891317,3.4792,143.72,143.68,3.4799]
[1727092895022,15.10296636,143.75,143.65,15.8925]
[1727092895621,3.4791,143.72,143.67,3.4802]
[1727092895823,15.10296636,143.75,143.67,3.4802]
[1727092896120,15.10296636,143.75,143.65,15.8925]
[1727092896315,3.4794,143.71,143.66,3.4804]
[1727092898022,3.4797,143.7,143.66,3.4804]
[1727092900124,3.4791,143.72,143.67,11.7]
[1727092900724,3.4791,143.72,143.68,3.4801]
[1727092901524,98.83412757,143.78,143.69,3.4798]
[1727092901525,3.4789,143.73,143.69,3.4798]
[1727092901929,98.83412757,143.78,143.71,3.4792]
[1727092901930,3.4785,143.75,143.71,3.4792]
[1727092902234,3.4785,143.75,143.71,15.1792]
[1727092903628,3.4787,143.74,143.71,11.7]
[1727092904025,11.7,143.77,143.69,11.7]
[1727092904224,3.479,143.73,143.69,15.1798]
[1727092904528,11.7,143.77,143.67,11.7]
[1727092904722,3.4797,143.7,143.67,11.7]
[1727092904924,15.17382639,143.74,143.65,15.8925]
[1727092906128,3.4797,143.7,143.66,3.4805]
[1727092906720,15.17382639,143.74,143.65,4.1925]
[1727092907723,11.7,143.7,143.61,83.56]
[1727092907926,11.7,143.68,143.59,11.7]
[1727092908227,3.481,143.65,143.6,3.4818]
[1727092908732,3.481,143.65,143.59,11.7]
[1727092909432,3.481,143.65,143.61,3.4817]
[1727092910827,3.4811,143.64,143.61,3.4817]
[1727092913127,11.7,143.68,143.59,11.7]
[1727092913328,11.7,143.66,143.59,11.7]
[1727092913729,11.7,143.66,143.59,15.1821]
[1727092915633,3.4814,143.63,143.59,15.1821]
[1727092917028,3.4816,143.62,143.59,15.1821]
[1727092917230,11.7,143.66,143.58,7.5581]
[1727092917723,3.482,143.61,143.58,7.5581]
[1727092918827,3.4821,143.6,143.58,4.0757]
[1727092919135,11.7,143.66,143.58,4.0757]
[1727092919729,11.7,143.66,143.58,7.5582]
[1727092920430,3.39903879,143.67,143.55,59.1994179]
[1727092920627,11.7,143.62,143.55,70.8994179]
[1727092920934,11.7,143.64,143.55,70.8994179]
[1727092922033,3.4819,143.61,143.58,3.4825]
[1727092924226,3.4821,143.6,143.55,70.8994179]
[1727092925831,3.4821,143.6,143.57,3.4827]
[1727092930235,3.4819,143.61,143.58,3.4824]
[1727092930635,3.4817,143.62,143.59,3.4822]
[1727092931242,3.4817,143.62,143.58,3.4824]
[1727092931837,3.4818,143.61,143.58,3.4824]
[1727092932152,11.7,143.63,143.53,15.9078]
[1727092932540,3.482,143.6,143.56,3.4829]
[1727092933043,11.7,143.63,143.56,3.4829]
[1727092933943,11.7,143.63,143.53,15.9078]
[1727092934344,3.4823,143.59,143.56,3.4829]
[1727092934647,11.7,143.61,143.53,15.9078]
[1727092934842,11.7,143.59,143.53,4.2078]
[1727092935241,15.1350776,143.59,143.53,7.6914]
[1727092935745,3.4829,143.57,143.53,7.6914]
[1727092936345,11.7,143.61,143.53,15.9078]
[1727092936847,15.24276137,143.61,143.53,15.9078]
[1727092937037,3.4824,143.59,143.55,3.4831]
[1727092937547,3.52080643,143.62,143.53,15.9078]
[1727092937749,11.7,143.63,143.53,15.9078]
[1727092937942,3.4822,143.6,143.56,3.4828]
[1727092940944,3.4819,143.61,143.55,11.7]
[1727092941544,3.4819,143.61,143.57,3.4825]
[1727092942644,3.4819,143.61,143.58,3.4824]
[1727092944040,2.5228,143.66,143.31,9.60841355]
[1727092944346,11.7,143.53,143.42,11.7]
[1727092944545,3.4846,143.5,143.43,4.77569944]
[1727092944751,11.7,143.53,143.43,4.77569944]
[1727092945150,3.4848,143.49,143.43,4.77569944]
[1727092945449,3.4848,143.49,143.43,1.3545]
[1727092945951,11.7,143.51,143.43,1.3545]
[1727092946549,18.6642,143.6,143.43,1.3545]
[1727092946550,11.7,143.49,143.43,1.3545]
[1727092946941,11.7,143.49,143.41,2.7444]
[1727092947353,11.7,143.47,143.41,2.7444]
[1727092947949,3.4864,143.42,143.41,2.7444]
[1727092948150,6.9678,143.53,143.36,13.0456]
[1727092948356,11.7,143.45,143.37,2.73]
[1727092949254,11.7,143.43,143.37,2.73]
[1727092949547,11.7,143.42,143.37,2.73]
[1727092950153,3.4874,143.38,143.37,2.73]
[1727092957860,3.4882,143.35,143.32,11.7]
[1727092958051,3.4882,143.35,143.33,1.3377]
[1727092958459,3.4883,143.34,143.33,1.3377]
[1727092968671,3.4886,143.33,143.32,2.7025]
[1727092972365,11.7,143.39,143.32,2.7025]
[1727092973070,3.4886,143.33,143.32,2.7025]
[1727092974964,6.9726,143.43,143.32,14.4025]
[1727092975166,11.7,143.42,143.32,14.4025]
[1727092975670,11.7,143.4,143.32,14.4025]
[1727092975863,3.4875,143.38,143.32,2.7025]
[1727092976069,11.7,143.4,143.32,2.7025]
[1727092976265,7.51,143.36,143.32,2.7025]
[1727092976574,3.4886,143.33,143.32,2.7025]
[1727092980772,3.47195087,143.45,143.32,14.4325]
[1727092980978,3.55753138,143.65,143.37,11.73]
[1727092980979,108.20099965,143.55,143.37,11.73]
[1727092981271,3.4866,143.42,143.39,11.73]
[1727092981669,11.73,143.47,143.39,11.73]
[1727092981864,3.4867,143.41,143.39,11.73]
[1727092982068,11.73,143.45,143.38,4.203]
[1727092982466,3.4871,143.39,143.38,4.203]
[1727092984972,6.9692,143.5,143.38,4.203]
[1727092985172,11.73,143.46,143.38,4.203]
[1727092985979,3.487,143.4,143.38,4.203]
[1727092987574,3.4867,143.41,143.38,4.203]
[1727092987768,13.0903,143.49,143.39,11.73]
[1727092987967,13.0903,143.49,143.41,11.73]
[1727092988684,11.73,143.49,143.41,11.73]
[1727092990376,13.1818,143.53,143.43,11.73]
[1727092990579,13.1818,143.53,143.45,11.73]
[1727092990980,3.4853,143.47,143.45,11.73]
[1727092991681,13.1818,143.53,143.44,1.4064]
[1727092993782,3.4855,143.46,143.44,1.4064]
[1727092993982,13.1818,143.53,143.44,1.4064]
[1727092995273,3.4857,143.45,143.44,1.4064]
[1727092997573,3.4862,143.43,143.41,11.73]
[1727092997776,1.4518,143.53,143.4,11.73]
[1727092997777,11.73,143.47,143.4,11.73]
[1727092997980,11.73,143.47,143.39,1.3403]
[1727092998185,11.73,143.45,143.39,1.3403]
[1727092998981,3.4869,143.4,143.39,1.3403]
[1727093002079,3.4867,143.41,143.39,13.0703]
[1727093002282,11.73,143.49,143.4,11.73]
[1727093002681,3.4866,143.42,143.4,11.73]
[1727093002987,11.73,143.49,143.4,11.73]
[1727093003786,3.4865,143.42,143.4,11.73]
[1727093004983,3.4866,143.41,143.4,11.73]
[1727093006487,3.4869,143.4,143.39,1.3403]
[1727093010089,1.4114,143.47,143.39,1.3403]
[1727093010389,1.4114,143.47,143.41,11.73]
[1727093011184,3.4869,143.4,143.39,13.0703]
[1727093011493,3.4869,143.4,143.39,1.3403]
[1727093012386,1.4114,143.47,143.39,13.0703]
[1727093012784,1.4383,143.48,143.41,11.73]
[1727093014987,3.4864,143.42,143.41,11.73]
[1727093017684,14.51523063,143.49,143.41,11.73]
[1727093017985,1.4524,143.53,143.44,11.73]
[1727093018186,1.4524,143.53,143.46,11.73]
[1727093018454,1.4524,143.53,143.4,13.1502]
[1727093018455,14.52438733,143.53,143.48,11.73]
[1727093018602,1.4471,143.54,143.48,15.15690145]
[1727093018787,3.4845,143.5,143.48,15.15690145]
[1727093019289,3.4848,143.49,143.46,15.2102615]
[1727093020177,3.4848,143.49,143.46,16.5449615]
[1727093021790,3.485,143.48,143.46,16.5449615]
[1727093023193,3.4852,143.47,143.46,13.0647]
[1727093023395,3.4852,143.47,143.46,1.3347]
[1727093023899,3.4852,143.47,143.4,96.8302]
[1727093023900,3.4857,143.45,143.42,15.2163]
[1727093026195,11.73,143.49,143.41,1.4128]
[1727093026501,11.73,143.51,143.42,11.73]
[1727093027104,3.4859,143.44,143.42,11.73]
[1727093028603,11.73,143.49,143.41,1.4128]
[1727093028801,11.73,143.49,143.4,13.1502]
[1727093029302,3.4861,143.44,143.41,3.4866]
[1727093032405,11.73,143.48,143.4,11.73]
[1727093033004,3.4865,143.42,143.39,4.8431]
[1727093033205,1.3656,143.47,143.39,1.3561]
[1727093033408,2.7047,143.47,143.39,1.3561]
[1727093033706,2.7047,143.47,143.39,4.8432]
[1727093033911,14.4347,143.47,143.39,4.8432]
[1727093034916,3.4866,143.42,143.39,4.8432]
[1727093035406,14.4347,143.47,143.4,3.4867]
[1727093035407,3.486,143.44,143.4,3.4867]
[1727093035612,3.486,143.44,143.4,11.73]
[1727093037423,3.486,143.44,143.4,15.2169]
[1727093041020,3.4862,143.43,143.4,11.73]
[1727093044326,3.4862,143.43,143.42,7.5]
[1727093046124,3.4862,143.43,143.39,3.487]
[1727093046321,3.4862,143.43,143.41,7.5]
[1727093046724,3.4862,143.43,143.42,7.5]
[1727093047726,3.4862,143.43,143.41,7.5]
[1727093051828,14.53382861,143.5,143.42,7.5]
[1727093052025,7.5,143.54,143.49,7.5]
[1727093052331,3.4843,143.51,143.49,7.5]
[1727093053131,7.5,143.54,143.49,7.5]
[1727093053132,3.4844,143.5,143.49,7.5]
[1727093054430,3.4844,143.5,143.47,11.72]
[1727093056629,3.4842,143.51,143.47,15.2051]
[1727093056832,3.4842,143.51,143.49,11.72]
[1727093060531,3.484,143.52,143.49,11.72]
[1727093060723,1.3516,143.56,143.5,11.72]
[1727093060924,15.9389637,143.6,143.52,11.72]
[1727093061132,2.8345,143.6,143.52,11.72]
[1727093061329,3.4833,143.55,143.52,11.72]
[1727093061529,11.72,143.59,143.49,13.0901]
[1727093061729,11.72,143.57,143.49,13.0901]
[1727093061928,15.21909534,143.57,143.49,1.3701]
[1727093062228,11.72,143.58,143.49,13.0901]
[1727093062430,3.4839,143.53,143.49,16.5746]
[1727093065935,3.4835,143.54,143.5,3.4844]
[1727093066238,3.4835,143.54,143.51,11.72]
[1727093067930,3.4838,143.53,143.49,13.0901]
[1727093068836,3.4838,143.53,143.49,16.5746]
[1727093069231,3.4838,143.53,143.49,13.0901]
[1727093069636,3.4838,143.53,143.5,3.4844]
[1727093070842,3.4836,143.54,143.51,3.4842]
[1727093071737,11.72,143.58,143.49,1.3701]
[1727093072040,11.72,143.56,143.49,1.3701]
[1727093072637,11.72,143.56,143.48,11.72]
[1727093072835,3.4845,143.5,143.48,11.72]
[1727093073631,3.4843,143.51,143.48,11.72]
[1727093074333,3.4843,143.51,143.5,7.5]
[1727093074538,3.4841,143.52,143.5,7.5]
[1727093074732,3.4841,143.52,143.51,7.5]
[1727093075231,7.5,143.56,143.51,7.5]
[1727093075430,7.5,143.58,143.52,7.5]
[1727093076138,3.4837,143.53,143.52,7.5]
[1727093082236,7.5,143.55,143.5,7.5]
[1727093082834,7.5,143.57,143.52,7.5]
[1727093083038,2.8345,143.6,143.52,7.5]
[1727093083238,7.5,143.57,143.52,7.5]
[1727093084748,2.8345,143.6,143.53,7.5]
[1727093084950,7.5,143.58,143.53,7.5]
[1727093086740,3.4835,143.54,143.53,7.5]
[1727093087452,3.4835,143.54,143.52,7.5]
[1727093087746,3.4837,143.53,143.52,7.5]
[1727093088452,3.4835,143.54,143.52,7.5]
[1727093093451,7.5,143.57,143.52,7.5]
[1727093093452,3.4837,143.53,143.52,7.5]
[1727093094150,3.4836,143.54,143.52,7.5]
[1727093094358,3.4836,143.54,143.53,7.5]
[1727093096857,3.4833,143.55,143.53,7.5]
[1727093099561,1.416,143.6,143.54,7.5]
[1727093099760,1.416,143.6,143.57,7.5]
[1727093100365,3.4827,143.58,143.57,7.5]
[1727093100662,1.416,143.6,143.53,7.5]
[1727093100865,7.5,143.59,143.55,7.5]
[1727093101662,7.5,143.59,143.52,1.382]
[1727093101964,7.5,143.58,143.53,7.5]
[1727093103265,3.4834,143.55,143.53,7.5]
[1727093105065,3.4831,143.56,143.54,7.5]
[1727093105262,3.4831,143.56,143.55,7.5]
[1727093108364,3.4828,143.57,143.55,7.5]
[1727093108668,3.4828,143.57,143.56,7.5]
[1727093109766,3.4826,143.58,143.56,7.5]
[1727093110067,7.5,143.61,143.56,7.5]
[1727093111870,2.8945,143.64,143.58,7.5]
[1727093112066,3.4823,143.59,143.58,7.5]
[1727093112564,1.429,143.64,143.58,7.5]
[1727093112766,1.429,143.64,143.6,7.5]
[1727093113160,3.4818,143.62,143.6,7.5]
[1727093113359,3.55879197,143.66,143.6,7.5]